fUSD/lending_fUSD_20250804
["ID","MTS","AMOUNT","RATE_DAILY","PERIOD"]
[377302707,1754326250700,-172.664148,0.00054794,120]
[377302708,1754326250709,-241.166098,0.00054794,120]
[377302709,1754326250719,-172.664148,0.00054794,120]
[377302710,1754326250728,-1653.73,0.00054794,120]
[377302711,1754326250737,-2140.43,0.00054794,120]
[377302712,1754326250747,-1143.83,0.00054794,120]
[377302713,1754326250756,-400.0,0.00054794,120]
[377302714,1754326250765,-400.0,0.00054794,120]
[377302715,1754326250774,-1486.84,0.00054794,120]
[377302716,1754326250784,-400.0,0.00054794,120]
[377302717,1754326250793,-1033.62,0.00054794,120]
[377302718,1754326250802,-400.0,0.00054794,120]
[377302719,1754326250812,-508.96266022,0.00054794,120]
[377302720,1754326250821,-400.0,0.00054794,120]
[377302721,1754326250831,-400.0,0.00054794,120]
[377302722,1754326250840,-400.0,0.00054794,120]
[377302723,1754326250849,-2125.4,0.00054794,120]
[377302724,1754326250858,-400.0,0.00054794,120]
[377302725,1754326250868,-693.51,0.00054794,120]
[377302726,1754326250877,-400.0,0.00054794,120]
[377302727,1754326250887,-6663.99,0.00054794,120]
[377302728,1754326250897,-509.61,0.00054794,120]
[377302729,1754326250906,-412.01,0.00054794,120]
[377302730,1754326250916,-415.87,0.00054794,120]
[377302731,1754326250925,-400.0,0.00054794,120]
[377302732,1754326250935,-727.0,0.00054794,120]
[377302733,1754326250944,-151.0,0.00054794,120]
[377302734,1754326250954,-223.03313,0.00054794,120]
[377302735,1754326250963,-400.0,0.00054794,120]
[377302736,1754326250973,-717.26,0.00054794,120]
[377302737,1754326250982,-1607.65,0.00054794,120]
[377302738,1754326250993,-400.0,0.00054794,120]
[377302739,1754326251002,-538.06,0.00054794,120]
[377302740,1754326251014,-400.0,0.00054794,120]
[377302741,1754326251024,-1430.92,0.00054794,120]
[377302742,1754326251033,-402.59522298,0.00054794,120]
[377302743,1754326251043,-342.23192629,0.00054794,120]
[377302744,1754326251053,-1359.02,0.00054794,120]
[377302745,1754326251062,-195.2553019,0.00054794,120]
[377302746,1754326251072,-1179.08,0.00054794,120]
[377302747,1754326251082,-400.0,0.00054794,120]
[377302748,1754326251092,-406.08031973,0.00054794,120]
[377302749,1754326251102,-400.0,0.00054794,120]
[377302750,1754326251115,-400.0,0.00054794,120]
[377302751,1754326251125,-2183.53,0.00054794,120]
[377302752,1754326251135,-400.0,0.00054794,120]
[377302753,1754326251145,-5552.11,0.00054794,120]
[377302754,1754326251155,-2667.12,0.00054794,120]
[377302755,1754326251164,-400.0,0.00054794,120]
[377302756,1754326251175,-243.895046,0.00054794,120]
[377302757,1754326251186,-243.895046,0.00054794,120]
[377302758,1754326251196,-400.0,0.00054794,120]
[377302759,1754326251206,-400.0,0.00054794,120]
[377302760,1754326251216,-400.0,0.00054794,120]
[377302761,1754326251226,-500.0,0.00054794,120]
[377302762,1754326251236,-400.0,0.00054794,120]
[377302763,1754326251245,-500.0,0.00054794,120]
[377302764,1754326251255,-500.0,0.00054794,120]
[377302765,1754326251265,-500.0,0.00054794,120]
[377302766,1754326251275,-500.0,0.00054794,120]
[377302767,1754326251284,-500.0,0.00054794,120]
[377302768,1754326251294,-500.0,0.00054794,120]
[377302769,1754326251304,-500.0,0.00054794,120]
[377302770,1754326251314,-1984.63,0.00054794,120]
[377302771,1754326251324,-500.0,0.00054794,120]
[377302772,1754326251333,-500.0,0.00054794,120]
[377302773,1754326251344,-500.0,0.00054794,120]
[377302774,1754326251354,-400.0,0.00054794,120]
[377302775,1754326251363,-500.0,0.00054794,120]
[377302776,1754326251373,-518.49,0.00054794,120]
[377302777,1754326251384,-500.0,0.00054794,120]
[377302778,1754326251393,-243.895046,0.00054794,120]
[377302779,1754326251403,-151.0,0.00054794,120]
[377302780,1754326251413,-500.0,0.00054794,120]
[377302781,1754326251422,-500.0,0.00054794,120]
[377302782,1754326251432,-243.895046,0.00054794,120]
[377302783,1754326251442,-151.0,0.00054794,120]
[377302784,1754326251452,-500.0,0.00054794,120]
[377302785,1754326251462,-400.0,0.00054794,120]
[377302786,1754326251471,-400.0,0.00054794,120]
[377302787,1754326251481,-151.0,0.00054794,120]
[377302788,1754326251492,-500.0,0.00054794,120]
[377302789,1754326251502,-500.0,0.00054794,120]
[377302790,1754326251512,-500.0,0.00054794,120]
[377302791,1754326251522,-500.0,0.00054794,120]
[377302792,1754326251532,-500.0,0.00054794,120]
[377302793,1754326251542,-400.0,0.00054794,120]
[377302794,1754326251561,-2963.83,0.00054794,120]
[377302795,1754326251574,-400.0,0.00054794,120]
[377302796,1754326251584,-500.0,0.00054794,120]
[377302797,1754326251594,-1194.98,0.00054794,120]
[377302798,1754326251604,-431.23179742,0.00054794,120]
[377302799,1754326251614,-1884.21,0.00054794,120]
[377302800,1754326251624,-400.0,0.00054794,120]
[377302801,1754326251634,-525.02,0.00054794,120]
[377302802,1754326251645,-1725.9,0.00054794,120]
[377302803,1754326251654,-465.77,0.00054794,120]
[377302804,1754326251665,-3469.96,0.00054794,120]
[377302805,1754326251675,-400.5854298,0.00054794,120]
[377302806,1754326251685,-1084.01,0.00054794,120]
[377302807,1754326251696,-400.0,0.00054794,120]
[377302808,1754326251706,-815.04,0.00054794,120]
[377302809,1754326251717,-400.0,0.00054794,120]
[377302810,1754326251727,-913.64,0.00054794,120]
[377302811,1754326251739,-400.0,0.00054794,120]
[377302812,1754326251749,-400.0,0.00054794,120]
[377302813,1754326251760,-400.0,0.00054794,120]
[377302814,1754326251770,-694.85,0.00054794,120]
[377302815,1754326251780,-428.71,0.00054794,120]
[377302816,1754326251791,-1228.91,0.00054794,120]
[377302817,1754326251802,-624.24,0.00054794,120]
[377302818,1754326251813,-400.0,0.00054794,120]
[377302819,1754326251823,-438.6,0.00054794,120]
[377302820,1754326251833,-197.27257896,0.00054794,120]
[377302821,1754326251844,-3010.19,0.00054794,120]
[377302822,1754326251854,-400.0,0.00054794,120]
[377302823,1754326251864,-1448.82,0.00054794,120]
[377302824,1754326251875,-400.0,0.00054794,120]
[377302825,1754326251885,-2670.08,0.00054794,120]
[377302826,1754326251896,-400.0,0.00054794,120]
[377302827,1754326251906,-799.79,0.00054794,120]
[377302828,1754326251916,-400.0,0.00054794,120]
[377302829,1754326251927,-4914.32,0.00054794,120]
[377302830,1754326251938,-841.89,0.00054794,120]
[377302831,1754326251948,-1299.33,0.00054794,120]
[377302832,1754326251958,-400.0,0.00054794,120]
[377302833,1754326251968,-400.0,0.00054794,120]
[377302834,1754326251978,-400.0,0.00054794,120]
[377302835,1754326251990,-890.88,0.00054794,120]
[377302836,1754326252000,-5098.12815181,0.00054794,120]
[377302837,1754326252011,-400.0,0.00054794,120]
[377302838,1754326252022,-528.33,0.00054794,120]
[377302839,1754326252032,-400.0,0.00054794,120]
[377302840,1754326252043,-729.92,0.00054794,120]
[377302841,1754326252053,-151.0,0.00054794,120]
[377302842,1754326252063,-151.0,0.00054794,120]
[377302843,1754326252074,-151.0,0.00054794,120]
[377302844,1754326252084,-400.0,0.00054794,120]
[377302845,1754326252094,-400.0,0.00054794,120]
[377302846,1754326252105,-1527.83,0.00054794,120]
[377302847,1754326252118,-1118.67,0.00054794,120]
[377302848,1754326252128,-619.46,0.00054794,120]
[377302849,1754326252140,-3691.45,0.00054794,120]
[377302850,1754326252152,-1334.7,0.00054794,120]
[377302851,1754326252163,-151.0,0.00054794,120]
[377302852,1754326252173,-400.0,0.00054794,120]
[377302853,1754326252184,-3916.88,0.00054794,120]
[377302854,1754326252194,-400.0,0.00054794,120]
[377302855,1754326252205,-179.351974,0.00054794,120]
[377302856,1754326252216,-400.0,0.00054794,120]
[377302857,1754326252228,-862.14,0.00054794,120]
[377302858,1754326252240,-402.74,0.00054794,120]
[377302859,1754326252250,-400.0,0.00054794,120]
[377302860,1754326252260,-797.56,0.00054794,120]
[377302861,1754326252270,-749.01,0.00054794,120]
[377302862,1754326252281,-7296.26,0.00054794,120]
[377302863,1754326252291,-151.0,0.00054794,120]
[377302864,1754326252302,-151.0,0.00054794,120]
[377302865,1754326252313,-400.0,0.00054794,120]
[377302866,1754326252323,-151.0,0.00054794,120]
[377302867,1754326252335,-550.62,0.00054794,120]
[377302868,1754326252346,-400.0,0.00054794,120]
[377302869,1754326252356,-4172.0,0.00054794,120]
[377302870,1754326252366,-400.0,0.00054794,120]
[377302871,1754326252377,-1252.94,0.00054794,120]
[377302872,1754326252387,-151.0,0.00054794,120]
[377302873,1754326252397,-151.0,0.00054794,120]
[377302874,1754326252408,-151.0,0.00054794,120]
[377302875,1754326252418,-400.0,0.00054794,120]
[377302876,1754326252429,-2056.03,0.00054794,120]
[377302877,1754326252440,-400.0,0.00054794,120]
[377302878,1754326252450,-2324.96,0.00054794,120]
[377302879,1754326252460,-2227.7,0.00054794,120]
[377302880,1754326252470,-400.0,0.00054794,120]
[377302881,1754326252481,-602.95,0.00054794,120]
[377302882,1754326252492,-1113.87,0.00054794,120]
[377302883,1754326252502,-637.47,0.00054794,120]
[377302884,1754326252512,-400.0,0.00054794,120]
[377302885,1754326252523,-400.0,0.00054794,120]
[377302886,1754326252534,-400.0,0.00054794,120]
[377302887,1754326252544,-400.0,0.00054794,120]
[377302888,1754326252555,-151.0,0.00054794,120]
[377302889,1754326252565,-652.0,0.00054794,120]
[377302890,1754326252574,-400.0,0.00054794,120]
[377302891,1754326252584,-151.0,0.00054794,120]
[377302892,1754326252595,-400.0,0.00054794,120]
[377302893,1754326252606,-151.0,0.00054794,120]
[377302894,1754326252617,-400.0,0.00054794,120]
[377302895,1754326252628,-1367.66,0.00054794,120]
[377302896,1754326252638,-731.811721,0.00054794,120]
[377302897,1754326252648,-731.811721,0.00054794,120]
[377302898,1754326252658,-731.811721,0.00054794,120]
[377302899,1754326252667,-400.0,0.00054794,120]
[377302900,1754326252677,-2770.76,0.00054794,120]
[377302901,1754326252687,-400.0,0.00054794,120]
[377302902,1754326252697,-400.0,0.00054794,120]
[377302903,1754326252707,-1240.43,0.00054794,120]
[377302904,1754326252717,-2817.36,0.00054794,120]
[377302905,1754326252727,-731.811721,0.00054794,120]
[377302906,1754326252738,-400.0,0.00054794,120]
[377302907,1754326252748,-400.0,0.00054794,120]
[377302908,1754326252758,-400.0,0.00054794,120]
[377302909,1754326252768,-989.47,0.00054794,120]
[377302910,1754326252778,-2029.78,0.00054794,120]
[377302911,1754326252788,-2743.01,0.00054794,120]
[377302912,1754326252798,-555.36,0.00054794,120]
[377302913,1754326252808,-2189.97,0.00054794,120]
[377302914,1754326252818,-1869.97,0.00054794,120]
[377302915,1754326252829,-400.0,0.00054794,120]
[377302916,1754326252839,-2802.98,0.00054794,120]
[377302917,1754326252849,-400.0,0.00054794,120]
[377302918,1754326252859,-400.0,0.00054794,120]
[377302919,1754326252869,-3096.21,0.00054794,120]
[377302920,1754326252880,-400.0,0.00054794,120]
[377302921,1754326252890,-662.51,0.00054794,120]
[377302922,1754326252900,-731.811721,0.00054794,120]
[377302923,1754326252911,-1695.64,0.00054794,120]
[377302924,1754326252921,-400.0,0.00054794,120]
[377302925,1754326252932,-731.811721,0.00054794,120]
[377302926,1754326252942,-719.32,0.00054794,120]
[377302927,1754326252952,-462.10864828,0.00054794,120]
[377302928,1754326252963,-2531.9,0.00054794,120]
[377302929,1754326252973,-400.0,0.00054794,120]
[377302930,1754326252983,-467.55,0.00054794,120]
[377302931,1754326252993,-400.0,0.00054794,120]
[377302932,1754326253003,-400.0,0.00054794,120]
[377302933,1754326253014,-400.58,0.00054794,120]
[377302934,1754326253024,-400.0,0.00054794,120]
[377302935,1754326253034,-400.0,0.00054794,120]
[377302936,1754326253044,-400.0,0.00054794,120]
[377302937,1754326253054,-400.0,0.00054794,120]
[377302938,1754326253064,-3185.23,0.00054794,120]
[377302939,1754326253075,-1009.6,0.00054794,120]
[377302940,1754326253085,-400.0,0.00054794,120]
[377302941,1754326253095,-694.01,0.00054794,120]
[377302942,1754326253106,-3523.16,0.00054794,120]
[377302943,1754326253118,-400.0,0.00054794,120]
[377302944,1754326253128,-768.43,0.00054794,120]
[377302945,1754326253138,-400.0,0.00054794,120]
[377302946,1754326253150,-1312.16,0.00054794,120]
[377302947,1754326253160,-400.0,0.00054794,120]
[377302948,1754326253171,-500.0,0.00054794,120]
[377302949,1754326253181,-400.0,0.00054794,120]
[377302950,1754326253193,-1279.15,0.00054794,120]
[377302951,1754326253204,-400.0,0.00054794,120]
[377302952,1754326253214,-500.0,0.00054794,120]
[377302953,1754326253225,-400.0,0.00054794,120]
[377302954,1754326253236,-400.0,0.00054794,2]
[377302955,1754326253247,-1326.25,0.00054794,120]
[377302956,1754326253257,-2341.31,0.00054794,120]
[377302957,1754326253268,-500.0,0.00054794,120]
[377302958,1754326253282,-780.59,0.00054794,120]
[377302959,1754326253623,-400.0,0.00054794,120]
[377302960,1754326253633,-500.0,0.00054794,120]
[377302961,1754326253643,-849.6,0.00054794,120]
[377302962,1754326253653,-507.65,0.00054794,120]
[377302963,1754326253663,-400.0,0.00054794,120]
[377302964,1754326253672,-3742.51,0.00054794,120]
[377302965,1754326253682,-400.0,0.00054794,120]
[377302966,1754326253691,-400.0,0.00054794,120]
[377302967,1754326253701,-400.0,0.00054794,120]
[377302968,1754326253711,-400.0,0.00054794,120]
[377302969,1754326253721,-500.0,0.00054794,120]
[377302970,1754326253730,-500.0,0.00054794,120]
[377302971,1754326253740,-500.0,0.00054794,120]
[377302972,1754326253750,-400.0,0.00054794,120]
[377302973,1754326253759,-500.0,0.00054794,120]
[377302974,1754326253769,-400.0,0.00054794,120]
[377302975,1754326253778,-3222.82,0.00054794,120]
[377302976,1754326253787,-220.12,0.00054794,120]
[377302977,1754326253797,-400.0,0.00054794,120]
[377302978,1754326253807,-400.0,0.00054794,120]
[377302979,1754326253816,-500.0,0.00054794,120]
[377302980,1754326253825,-2896.26,0.00054794,120]
[377302981,1754326253834,-150.57623507,0.00054794,120]
[377302982,1754326253844,-400.0,0.00054794,120]
[377302983,1754326253853,-400.0,0.00054794,120]
[377302984,1754326253863,-401.05315437,0.00054794,120]
[377302985,1754326253872,-500.0,0.00054794,120]
[377302986,1754326253882,-3703.99,0.00054794,120]
[377302987,1754326253891,-3893.94,0.00054794,120]
[377302988,1754326253901,-400.0,0.00054794,120]
[377302989,1754326253910,-150.0,0.00054794,120]
[377302990,1754326253920,-151.0,0.00054794,120]
[377302991,1754326253930,-677.44,0.00054794,120]
[377302992,1754326253940,-1900.66,0.00054794,120]
[377302993,1754326253949,-151.0,0.00054794,120]
[377302994,1754326253959,-150.0,0.00054794,120]
[377302995,1754326253968,-151.0,0.00054794,120]
[377302996,1754326253978,-582.59,0.00054794,120]
[377302997,1754326253987,-150.0,0.00054794,120]
[377302998,1754326253997,-400.0,0.00054794,120]
[377302999,1754326254008,-400.0,0.00054794,120]
[377303000,1754326254018,-400.0,0.00054794,120]
[377303001,1754326254027,-400.0,0.00054794,120]
[377303002,1754326254037,-500.0,0.00054794,120]
[377303003,1754326254047,-789.79,0.00054794,120]
[377303004,1754326254057,-673.54,0.00054794,120]
[377303005,1754326254067,-1166.18,0.00054794,120]
[377303006,1754326254077,-990.84,0.00054794,120]
[377303007,1754326254087,-400.0,0.00054794,120]
[377303008,1754326254098,-2392.95,0.00054794,120]
[377303009,1754326254114,-2779.64,0.00054794,120]
[377303010,1754326254133,-1951.47,0.00054794,120]
[377303011,1754326254144,-1681.22,0.00054794,120]
[377303012,1754326254154,-1754.64,0.00054794,120]
[377303013,1754326254163,-2959.1,0.00054794,120]
[377303014,1754326254173,-400.0,0.00054794,120]
[377303015,1754326254183,-500.0,0.00054794,120]
[377303016,1754326254193,-151.266201,0.00054794,120]
[377303017,1754326254203,-1512.19,0.00054794,120]
[377303018,1754326254214,-400.0,0.00054794,120]
[377303019,1754326254224,-1568.53,0.00054794,120]
[377303020,1754326254233,-400.0,0.00054794,120]
[377303021,1754326254243,-400.0,0.00054794,120]
[377303022,1754326254253,-400.0,0.00054794,120]
[377303023,1754326254262,-644.97,0.00054794,120]
[377303024,1754326254277,-400.0,0.00054794,120]
[377303025,1754326254287,-830.14,0.00054794,120]
[377303026,1754326254298,-400.0,0.00054794,120]
[377303027,1754326254307,-400.0,0.00054794,2]
[377303028,1754326254317,-511.0,0.00054794,120]
[377303029,1754326254327,-1854.33,0.00054794,120]
[377303030,1754326254338,-400.0,0.00054794,120]
[377303031,1754326254348,-400.0,0.00054794,90]
[377303032,1754326254359,-400.34,0.00054794,120]
[377303033,1754326254369,-918.71,0.00054794,120]
[377303034,1754326254380,-2612.45,0.00054794,120]
[377303035,1754326254390,-2766.59,0.00054794,120]
[377303036,1754326254400,-1873.65,0.00054794,120]
[377303037,1754326254410,-400.0,0.00054794,120]
[377303038,1754326254420,-400.0,0.00054794,120]
[377303039,1754326254430,-400.0,0.00054794,120]
[377303040,1754326254441,-976.75,0.00054794,120]
[377303041,1754326254452,-400.0,0.00054794,120]
[377303042,1754326254462,-400.0,0.00054794,120]
[377303043,1754326254472,-150.0,0.00054794,120]
[377303044,1754326254482,-150.0,0.00054794,120]
[377303045,1754326254493,-770.99,0.00054794,120]
[377303046,1754326254503,-400.0,0.00054794,120]
[377303047,1754326254513,-400.0,0.00054794,120]
[377303048,1754326254524,-2450.77,0.00054794,120]
[377303049,1754326254533,-500.0,0.00054794,120]
[377303050,1754326254544,-223.68710716,0.00054794,120]
[377303051,1754326254554,-400.0,0.00054794,120]
[377303052,1754326254564,-2456.81,0.00054794,120]
[377303053,1754326254574,-400.0,0.00054794,120]
[377303054,1754326254583,-400.0,0.00054794,120]
[377303055,1754326254593,-150.0,0.00054794,120]
[377303056,1754326254603,-400.0,0.00054794,120]
[377303057,1754326254614,-5564.72,0.00054794,120]
[377303058,1754326254624,-639.08,0.00054794,120]
[377303059,1754326254634,-1297.97,0.00054794,120]
[377303060,1754326254644,-400.0,0.00054794,120]
[377303061,1754326254655,-2702.88,0.00054794,120]
[377303062,1754326254665,-400.0,0.00054794,120]
[377303063,1754326254675,-638.12,0.00054794,120]
[377303064,1754326254685,-451.28,0.00054794,120]
[377303065,1754326254695,-400.0,0.00054794,120]
[377303066,1754326254705,-723.25,0.00054794,120]
[377303067,1754326254720,-400.0,0.00054794,120]
[377303068,1754326254730,-400.0,0.00054794,120]
[377303069,1754326254742,-400.0,0.00054794,120]
[377303070,1754326254752,-400.0,0.00054794,120]
[377303071,1754326254762,-500.0,0.00054794,120]
[377303072,1754326254772,-500.0,0.00054794,120]
[377303073,1754326254783,-500.0,0.00054794,120]
[377303074,1754326254794,-2485.72,0.00054794,120]
[377303075,1754326254804,-500.0,0.00054794,120]
[377303076,1754326254815,-400.0,0.00054794,120]
[377303077,1754326254825,-500.0,0.00054794,120]
[377303078,1754326254835,-733.4,0.00054794,120]
[377303079,1754326254846,-500.0,0.00054794,120]
[377303080,1754326254855,-400.0,0.00054794,120]
[377303081,1754326254866,-500.0,0.00054794,120]
[377303082,1754326254877,-3046.93,0.00054794,2]
[377303083,1754326254887,-1201.01,0.00054794,120]
[377303084,1754326254897,-2357.23,0.00054794,120]
[377303085,1754326254908,-400.0,0.00054794,120]
[377303086,1754326254918,-2909.69,0.00054794,120]
[377303087,1754326254930,-2885.85,0.00054794,120]
[377303088,1754326254941,-1878.19,0.00054794,120]
[377303089,1754326254952,-400.0,0.00054794,120]
[377303090,1754326254963,-4117.9,0.00054794,120]
[377303091,1754326254973,-400.0,0.00054794,120]
[377303092,1754326254984,-400.0,0.00054794,120]
[377303093,1754326254995,-4201.57,0.00054794,120]
[377303094,1754326255005,-400.0,0.00054794,120]
[377303095,1754326255016,-400.0,0.00054794,120]
[377303096,1754326255026,-878.68,0.00054794,120]
[377303097,1754326255036,-151.0,0.00054794,120]
[377303098,1754326255046,-400.0,0.00054794,120]
[377303099,1754326255056,-2836.06,0.00054794,120]
[377303100,1754326255067,-151.0,0.00054794,120]
[377303101,1754326255077,-416.68,0.00054794,120]
[377303102,1754326255087,-151.0,0.00054794,120]
[377303103,1754326255097,-400.0,0.00054794,120]
[377303104,1754326255108,-400.0,0.00054794,120]
[377303105,1754326255119,-2361.41,0.00054794,120]
[377303106,1754326255130,-1295.71,0.00054794,120]
[377303107,1754326255140,-400.0,0.00054794,120]
[377303108,1754326255156,-151.0,0.00054794,120]
[377303109,1754326255166,-151.0,0.00054794,120]
[377303110,1754326255177,-268.724597,0.00054794,120]
[377303111,1754326255188,-151.0,0.00054794,120]
[377303112,1754326255199,-644.11,0.00054794,120]
[377303113,1754326255210,-400.0,0.00054794,120]
[377303114,1754326255220,-912.44,0.00054794,120]
[377303115,1754326255230,-846.6,0.00054794,120]
[377303116,1754326255240,-422.27,0.00054794,120]
[377303117,1754326255251,-400.0,0.00054794,120]
[377303118,1754326255261,-253.91894608,0.00054794,120]
[377303119,1754326255271,-151.0,0.00054794,120]
[377303120,1754326255281,-151.0,0.00054794,120]
[377303121,1754326255290,-2565.6,0.00054794,120]
[377303122,1754326255300,-2406.8,0.00054794,120]
[377303123,1754326255311,-151.0,0.00054794,120]
[377303124,1754326255321,-280.53873,0.00054794,120]
[377303125,1754326255332,-280.53873,0.00054794,120]
[377303126,1754326255342,-1191.24,0.00054794,120]
[377303127,1754326255352,-3198.94,0.00054794,120]
[377303128,1754326255363,-400.0,0.00054794,120]
[377303129,1754326255373,-280.53873,0.00054794,120]
[377303130,1754326255384,-400.0,0.00054794,120]
[377303131,1754326255395,-400.0,0.00054794,120]
[377303132,1754326255405,-2890.65,0.00054794,120]
[377303133,1754326255416,-400.0,0.00054794,120]
[377303134,1754326255426,-1810.48,0.00054794,120]
[377303135,1754326255436,-2180.64,0.00054794,120]
[377303136,1754326255446,-280.53873,0.00054794,120]
[377303137,1754326255456,-280.53873,0.00054794,120]
[377303138,1754326255467,-280.53873,0.00054794,120]
[377303139,1754326255477,-400.0,0.00054794,120]
[377303140,1754326255487,-4049.98,0.00054794,120]
[377303141,1754326255497,-400.0,0.00054794,120]
[377303142,1754326255507,-400.98,0.00054794,120]
[377303143,1754326255517,-1051.75,0.00054794,120]
[377303144,1754326255527,-400.0,0.00054794,120]
[377303145,1754326255538,-3702.82,0.00054794,120]
[377303146,1754326255548,-2628.67,0.00054794,120]
[377303147,1754326255558,-893.21,0.00054794,120]
[377303148,1754326255568,-400.0,0.00054794,120]
[377303149,1754326255578,-400.0,0.00054794,120]
[377303150,1754326255588,-400.0,0.00054794,120]
[377303151,1754326255599,-15330.82,0.00054794,120]
[377303152,1754326255610,-400.0,0.00054794,120]
[377303153,1754326255619,-768.07,0.00054794,120]
[377303154,1754326255630,-400.0,0.00054794,120]
[377303155,1754326255639,-3175.89,0.00054794,120]
[377303156,1754326255649,-532.5427861,0.00054794,60]
[377303157,1754326255659,-400.0,0.00054794,120]
[377303158,1754326255669,-2868.75,0.00054794,120]
[377303159,1754326255679,-2163.34,0.00054794,120]
[377303160,1754326255688,-400.0,0.00054794,120]
[377303161,1754326255698,-400.0,0.00054794,120]
[377303162,1754326255708,-151.0,0.00054794,120]
[377303163,1754326255718,-400.0,0.00054794,120]
[377303164,1754326255727,-151.0,0.00054794,120]
[377303165,1754326255737,-400.0,0.00054794,120]
[377303166,1754326255747,-2002.49,0.00054794,120]
[377303167,1754326255756,-151.0,0.00054794,120]
[377303168,1754326255767,-400.0,0.00054794,120]
[377303169,1754326255776,-643.84,0.00054794,120]
[377303170,1754326255787,-500.0,0.00054794,120]
[377303171,1754326255796,-400.0,0.00054794,120]
[377303172,1754326255806,-500.0,0.00054794,120]
[377303173,1754326255816,-500.0,0.00054794,120]
[377303174,1754326255826,-500.0,0.00054794,120]
[377303175,1754326255837,-500.0,0.00054794,120]
[377303176,1754326255848,-2127.6,0.00054794,120]
[377303177,1754326255858,-578.71798913,0.00054794,120]
[377303178,1754326255868,-794.95,0.00054794,120]
[377303179,1754326255878,-473.32,0.00054794,120]
[377303180,1754326255889,-219.01961229,0.00054794,120]
[377303181,1754326255900,-4187.92,0.00054794,120]
[377303182,1754326255910,-2397.59,0.00054794,120]
[377303183,1754326255920,-497.28,0.00054794,120]
[377303184,1754326255930,-711.13,0.00054794,120]
[377303185,1754326255940,-400.0,0.00054794,120]
[377303186,1754326255949,-400.0,0.00054794,120]
[377303187,1754326255959,-400.0,0.00054794,120]
[377303188,1754326255968,-400.0,0.00054794,120]
[377303189,1754326255987,-833.59,0.00054794,120]
[377303190,1754326255997,-400.0,0.00054794,120]
[377303191,1754326256006,-400.0,0.00054794,120]
[377303192,1754326256016,-400.0,0.00054794,120]
[377303193,1754326256026,-3389.17,0.00054794,120]
[377303194,1754326256260,-792.95,0.00054794,120]
[377303195,1754326256270,-400.0,0.00054794,120]
[377303196,1754326256279,-527.00294053,0.00054794,120]
[377303197,1754326256290,-4457.56,0.00054794,120]
[377303198,1754326256300,-400.0,0.00054794,120]
[377303199,1754326256310,-3248.19,0.00054794,120]
[377303200,1754326256319,-3882.86,0.00054794,120]
[377303201,1754326256330,-400.88400456,0.00054794,120]
[377303202,1754326256340,-542.94,0.00054794,120]
[377303203,1754326256350,-400.0,0.00054794,120]
[377303204,1754326256361,-400.0,0.00054794,120]
[377303205,1754326256371,-400.0,0.00054794,120]
[377303206,1754326256380,-2197.1,0.00054794,120]